bitfinex/quotes_SOLUSD_20260304
["timestamp","ask_amount","ask_price","bid_price","bid_amount"]
[1772599694602,2.49971881,85.302,85.272,11.7271789]
[1772599694789,2.49971881,85.3,85.272,11.7271789]
[1772599695303,2.49971881,85.299,85.263,1.84207044]
[1772599695777,2.49971881,85.299,85.262,11.72841953]
[1772599696294,2.49971881,85.297,85.262,11.72841953]
[1772599696497,2.49971881,85.297,85.23,1.90046797]
[1772599696498,2.49971881,85.289,85.23,11.73295787]
[1772599696679,2.49971881,85.269,85.231,1.85012412]
[1772599696879,2.49971881,85.269,85.24,1.90046797]
[1772599697490,2.49971881,85.269,85.239,1.8580853]
[1772599697688,2.49971881,85.269,85.24,1.90046797]
[1772599697901,2.49971881,85.269,85.241,1.86595504]
[1772599698090,1.90046797,85.29,85.251,2.60001249]
[1772599698396,1.90046797,85.29,85.23,42.96582053]
[1772599698397,41.03261506,85.298,85.261,2.60001249]
[1772599700204,2.71858704,85.297,85.261,2.60001249]
[1772599700711,2.71858704,85.295,85.262,2.72769562]
[1772599701614,2.71858704,85.295,85.271,2.72769562]
[1772599701988,2.71858704,85.295,85.257,2.72769562]
[1772599702299,2.71858704,85.295,85.261,2.72769562]
[1772599703806,2.71858704,85.293,85.263,2.72769562]
[1772599704499,11.7241541,85.294,85.271,2.72769562]
[1772599705006,2.71858704,85.316,85.281,2.72769562]
[1772599705879,2.71858704,85.314,85.281,2.72769562]
[1772599706500,2.71858704,85.309,85.272,2.72769562]
[1772599709100,2.71858704,85.307,85.272,2.72769562]
[1772599711206,2.71858704,85.305,85.272,2.72769562]
[1772599712912,2.71858704,85.305,85.26,1.90187519]
[1772599712913,2.71858704,85.305,85.274,2.72769562]
[1772599713915,2.71858704,85.303,85.274,2.72769562]
[1772599716008,2.71858704,85.301,85.274,2.72769562]
[1772599716711,2.71858704,85.299,85.26,1.90187519]
[1772599717010,2.71858704,85.299,85.256,2.72769562]
[1772599717709,2.71858704,85.289,85.256,2.72769562]
[1772599721015,2.71858704,85.287,85.26,1.90187519]
[1772599721403,2.71858704,85.287,85.26,4.62957081]
[1772599722614,2.71858704,85.285,85.261,11.72869189]
[1772599722820,2.71858704,85.285,85.262,2.72769562]
[1772599723616,2.71858704,85.308,85.271,2.72769562]
[1772599723821,2.71858704,85.308,85.281,2.72769562]
[1772599728123,2.69421237,85.306,85.281,2.72769562]
[1772599729930,2.69421237,85.304,85.281,2.72769562]
[1772599730230,2.69421237,85.304,85.273,2.84217344]
[1772599731905,2.69421237,85.302,85.273,2.84217344]
[1772599732314,2.69421237,85.289,85.257,2.84217344]
[1772599732826,2.69421237,85.289,85.258,2.84217344]
[1772599734312,2.69421237,85.289,85.257,11.72921625]
[1772599734313,2.69421237,85.287,85.261,2.84217344]
[1772599735517,2.69421237,85.285,85.261,2.84217344]
[1772599737916,2.69421237,85.283,85.261,2.84217344]
[1772599738826,2.69421237,85.283,85.255,2.84217344]
[1772599740473,2.69421237,85.281,85.255,2.84217344]
[1772599741709,11.72346686,85.299,85.261,2.84217344]
[1772599741910,2.69421237,85.298,85.261,2.84217344]
[1772599743932,2.69421237,85.289,85.252,2.84217344]
[1772599747034,2.69421237,85.287,85.254,2.84217344]
[1772599748035,11.72497889,85.288,85.254,2.84217344]
[1772599748239,11.72497889,85.288,85.253,11.72979249]
[1772599748240,2.69421237,85.298,85.261,2.84217344]
[1772599749829,2.69421237,85.296,85.263,2.84217344]
[1772599753038,2.69421237,85.294,85.265,2.84217344]
[1772599755827,2.69421237,85.292,85.267,2.84217344]
[1772599756524,2.69421237,85.292,85.266,11.72800412]
[1772599756525,2.69421237,85.314,85.281,2.84217344]
[1772599757049,2.69421237,85.311,85.281,2.84217344]
[1772599757341,2.69421237,85.309,85.271,2.84217344]
[1772599757743,2.69421237,85.299,85.271,2.84217344]
[1772599757951,2.69421237,85.297,85.271,2.84217344]
[1772599759943,2.69985372,85.289,85.255,11.72951288]
[1772599760149,2.69985372,85.289,85.256,2.80909126]
[1772599760448,2.69985372,85.289,85.261,2.80909126]
[1772599761830,2.69985372,85.287,85.261,2.80909126]
[1772599763225,11.72445484,85.292,85.261,11.72856009]
[1772599763425,11.72445484,85.292,85.262,2.80909126]
[1772599764249,1.90181477,85.31,85.234,61.2]
[1772599764250,41.02732418,85.309,85.271,2.80909126]
[1772599764434,2.69985372,85.308,85.271,2.80909126]
[1772599766141,2.69985372,85.308,85.27,1.90181477]
[1772599766447,2.69985372,85.299,85.261,11.72869189]
[1772599766751,2.69985372,85.299,85.262,2.80909126]
[1772599767937,2.69985372,85.299,85.271,2.80909126]
[1772599768751,14.42345802,85.298,85.272,2.80909126]
[1772599770479,2.69985372,85.297,85.272,2.80909126]
[1772599772345,11.72387919,85.296,85.272,2.80909126]
[1772599772552,14.42373291,85.296,85.272,2.80909126]
[1772599772947,14.42373291,85.296,85.274,2.80909126]
[1772599773748,2.69985372,85.295,85.274,2.80909126]
[1772599774354,2.69985372,85.302,85.274,2.80909126]
[1772599774536,2.69985372,85.302,85.276,2.80909126]
[1772599775252,11.72319199,85.301,85.276,2.80909126]
[1772599775437,2.69985372,85.3,85.276,2.80909126]
[1772599776752,11.72346686,85.299,85.276,2.80909126]
[1772599776936,2.69985372,85.298,85.276,2.80909126]
[1772599779052,2.69985372,85.296,85.268,2.80909126]
[1772599781372,2.69985372,85.294,85.268,2.80909126]
[1772599783469,11.72429155,85.293,85.27,2.80909126]
[1772599783674,14.42414527,85.293,85.27,2.80909126]
[1772599783867,2.69985372,85.292,85.27,2.80909126]
[1772599785881,29.306007,85.307,85.27,2.80909126]
[1772599785882,2.69985372,85.29,85.27,2.80909126]
[1772599787973,2.69985372,85.295,85.272,2.80909126]
[1772599788284,2.69985372,85.295,85.271,11.72731643]
[1772599788285,2.7695942,85.34,85.291,2.66816463]
[1772599788570,2.7695942,85.34,85.311,2.66816463]
[1772599788949,2.7695942,85.34,85.305,2.66816463]
[1772599789152,2.7695942,85.339,85.305,2.66816463]
[1772599789575,11.71810916,85.338,85.305,2.66816463]
[1772599789877,2.7695942,85.337,85.305,2.66816463]
[1772599790274,2.7695942,85.337,85.311,2.66816463]
[1772599791058,2.7695942,85.342,85.311,2.66816463]
[1772599792687,2.7695942,85.35,85.321,2.66816463]
[1772599792872,2.7695942,85.349,85.321,2.66816463]
[1772599793387,2.7695942,85.329,85.291,2.66816463]
[1772599793687,3.69383402,85.365,85.321,2.66816463]
[1772599793986,1.01999977,85.401,85.321,2.66816463]
[1772599793987,1.90181477,85.37,85.321,2.66816463]
[1772599794169,1.90181477,85.35,85.321,2.66816463]
[1772599794363,1.90181477,85.36,85.321,2.66816463]
[1772599794703,42.9950828,85.38,85.301,11.72319199]
[1772599794704,2.7695942,85.337,85.301,11.72319199]
[1772599794879,2.7695942,85.337,85.3,1.90181477]
[1772599795264,2.7695942,85.329,85.295,11.72390064]
[1772599795575,2.7695942,85.329,85.29,1.90181477]
[1772599796173,1.90181477,85.32,85.287,11.72503262]
[1772599796370,2.7695942,85.378,85.311,0.28432314]
[1772599796684,2.7695942,85.369,85.341,2.66816463]
[1772599797288,2.7695942,85.369,85.33,13.62097064]
[1772599797990,2.7695942,85.369,85.34,1.90181477]
[1772599798573,2.7695942,85.369,85.33,41.01717532]
[1772599798574,1.01999977,85.401,85.362,2.66816463]
[1772599798881,0.1,85.41,85.361,0.28432314]
[1772599798882,0.1,85.41,85.391,2.66816463]
[1772599799279,0.1,85.41,85.35,2.66816463]
[1772599799280,1.90181477,85.4,85.35,2.66816463]
[1772599799468,11.70836797,85.409,85.35,2.66816463]
[1772599799469,1.90181477,85.38,85.35,2.66816463]
[1772599799675,1.90181477,85.39,85.351,2.66816463]
[1772599800687,40.97928789,85.409,85.32,1.90181477]
[1772599800688,2.7695942,85.395,85.361,2.66816463]
[1772599800981,2.7695942,85.395,85.36,1.90181477]
[1772599801190,2.7695942,85.379,85.344,2.66816463]
[1772599801385,1.90181477,85.39,85.341,11.71761109]
[1772599801586,2.7695942,85.379,85.325,11.71977216]
[1772599801789,2.7695942,85.369,85.33,1.90181477]
[1772599801982,2.7695942,85.369,85.331,2.66816463]
[1772599802177,3.69383402,85.393,85.341,2.66816463]
[1772599802178,2.7695942,85.379,85.341,2.66816463]
[1772599802486,2.7695942,85.379,85.351,2.66816463]
[1772599802689,2.7695942,85.379,85.353,2.66816463]
[1772599804184,2.7695942,85.377,85.334,2.66816463]
[1772599804385,2.7695942,85.349,85.311,2.66816463]
[1772599804574,2.7695942,85.347,85.311,2.66816463]
[1772599805180,2.7695942,85.347,85.313,2.66816463]
[1772599806970,2.7695942,85.347,85.315,2.66816463]
[1772599807179,11.71701075,85.346,85.315,2.66816463]
[1772599807677,14.48660495,85.346,85.315,2.66816463]
[1772599808086,11.71626337,85.352,85.321,2.66816463]
[1772599808290,2.7695942,85.351,85.321,2.66816463]
[1772599808489,2.7695942,85.349,85.321,2.66816463]
[1772599808996,11.71673618,85.348,85.314,11.72140563]
[1772599809205,2.7695942,85.347,85.314,14.38957026]
[1772599809377,2.7695942,85.347,85.309,2.66816463]
[1772599809985,2.7695942,85.339,85.309,2.66816463]
[1772599810277,2.7695942,85.339,85.304,36.92354195]
[1772599810582,2.7695942,85.339,85.305,2.66816463]
[1772599811804,2.7695942,85.329,85.304,36.92354195]
[1772599812177,2.7695942,85.329,85.296,2.66816463]
[1772599813484,2.7695942,85.327,85.296,2.66816463]
[1772599814096,2.7695942,85.319,85.289,2.66816463]
[1772599815801,2.7695942,85.317,85.289,2.66816463]
[1772599816292,2.7695942,85.309,85.281,2.66816463]
[1772599817080,2.7695942,85.309,85.276,11.72653734]
[1772599817283,2.7695942,85.309,85.276,14.39470197]
[1772599817492,4.67140897,85.3,85.276,2.66816463]
[1772599817698,2.7695942,85.3,85.276,2.66816463]
[1772599818791,11.72346686,85.299,85.276,2.66816463]
[1772599820305,2.90628221,85.298,85.264,2.7186293]
[1772599820517,2.90628221,85.296,85.271,2.7186293]
[1772599822006,14.63029885,85.295,85.271,2.7186293]
[1772599822500,1.90181477,85.32,85.273,2.7186293]
[1772599822501,11.72319199,85.301,85.273,2.7186293]
[1772599822688,14.6294742,85.301,85.273,2.7186293]
[1772599822879,2.90628221,85.3,85.273,2.7186293]
[1772599823913,2.90628221,85.298,85.273,2.7186293]
[1772599824605,11.72286764,85.304,85.275,2.7186293]
[1772599824812,2.90628221,85.303,85.275,2.7186293]
[1772599824998,2.90628221,85.299,85.275,2.7186293]
[1772599825890,2.90628221,85.287,85.251,2.7186293]
[1772599826210,2.90628221,85.287,85.254,2.7186293]
[1772599827189,11.72525385,85.286,85.255,11.72951733]
[1772599827388,14.63153606,85.286,85.256,2.7186293]
[1772599829710,41.02395798,85.316,85.27,1.90131134]
[1772599829901,102.5,85.33,85.281,2.7186293]
[1772599830103,1.90131134,85.34,85.301,2.7186293]
[1772599830303,2.90628221,85.341,85.301,2.7186293]
[1772599830494,2.90628221,85.339,85.301,2.7186293]
[1772599831413,2.90628221,85.339,85.311,2.7186293]
[1772599831910,2.90628221,85.339,85.313,2.7186293]
[1772599832687,11.71755928,85.343,85.313,2.7186293]
[1772599832885,11.71571879,85.356,85.321,2.7186293]
[1772599833705,14.622001,85.356,85.321,2.7186293]
[1772599833908,1.90131134,85.35,85.322,11.7203066]
[1772599834114,1.90131134,85.35,85.323,2.7186293]
[1772599834493,2.90628221,85.353,85.323,2.7186293]
[1772599836609,2.90628221,85.353,85.325,2.7186293]
[1772599837095,11.71618708,85.352,85.325,2.7186293]
[1772599837412,14.62246929,85.352,85.325,2.7186293]
[1772599838421,2.90628221,85.351,85.325,2.7186293]
[1772599838716,2.90628221,85.349,85.325,2.7186293]
[1772599838910,2.90628221,85.349,85.29,1.90131134]
[1772599838911,2.90628221,85.339,85.302,2.7186293]
[1772599839799,42.90892703,85.35,85.291,11.72456648]
[1772599839800,2.90628221,85.329,85.291,11.72456648]
[1772599840925,2.90628221,85.327,85.29,1.90131134]
[1772599841804,2.90628221,85.327,85.291,2.7186293]
[1772599843012,2.90628221,85.325,85.292,2.7186293]
[1772599843713,2.90628221,85.325,85.293,2.7186293]
[1772599846025,14.62631408,85.324,85.293,2.7186293]
[1772599846824,14.62631408,85.324,85.295,2.7186293]
[1772599847220,2.90628221,85.354,85.311,2.7186293]
[1772599847525,2.90628221,85.349,85.311,2.7186293]
[1772599848119,3.00102741,85.347,85.311,2.7186293]
[1772599849723,3.00102741,85.339,85.311,2.7186293]
[1772599850313,3.00102741,85.337,85.301,3.17233851]
[1772599851115,3.00102741,85.329,85.301,3.17233851]
[1772599853327,3.00102741,85.327,85.301,3.17233851]
[1772599853525,3.00102741,85.327,85.303,3.17233851]
[1772599854226,163.4,85.428,85.301,11.72308698]
[1772599854429,6.63152721,85.538,85.461,6.11747231]
[1772599854609,3.00102741,85.499,85.441,3.69383402]
[1772599854805,3.00102741,85.499,85.438,6.11369055]
[1772599855025,1.90131134,85.53,85.438,6.11369055]
[1772599855026,3.00102741,85.489,85.438,6.11369055]
[1772599855215,3.00102741,85.479,85.438,6.11369055]
[1772599855412,3.00102741,85.479,85.43,1.90131134]
[1772599855610,3.00102741,85.479,85.45,1.90131134]
[1772599855814,3.00102741,85.479,85.44,1.90131134]
[1772599856108,3.00102741,85.479,85.41,1.90131134]
[1772599856109,3.00102741,85.479,85.45,1.90131134]
[1772599856516,3.00102741,85.479,85.45,5.63488869]
[1772599856931,3.00102741,85.479,85.44,5.63488869]
[1772599858311,3.00102741,85.479,85.43,8.8072272]
[1772599858727,3.00102741,85.479,85.44,5.63488869]
[1772599860328,3.00102741,85.479,85.421,3.17233851]
[1772599860730,3.00102741,85.479,85.43,5.63488869]
[1772599860937,3.00102741,85.479,85.4,34.90870325]
[1772599860938,4.82477569,85.457,85.4,5.63488869]
[1772599861145,3.00102741,85.452,85.4,5.63488869]
[1772599861442,3.69383402,85.457,85.4,5.63488869]
[1772599861633,3.00102741,85.451,85.401,3.17233851]
[1772599862943,3.00102741,85.449,85.401,3.17233851]
[1772599863724,3.00102741,85.429,85.373,3.17233851]
[1772599863934,3.00102741,85.419,85.373,3.17233851]
[1772599864444,3.00102741,85.419,85.38,5.63488869]
[1772599864662,3.00102741,85.419,85.373,3.17233851]
[1772599865433,3.00102741,85.419,85.38,5.63488869]
[1772599865624,3.00102741,85.419,85.375,3.17233851]
[1772599865823,3.00102741,85.419,85.38,5.63488869]
[1772599866746,3.00102741,85.419,85.375,3.17233851]
[1772599867051,3.00102741,85.419,85.37,5.63488869]
[1772599867631,3.00102741,85.419,85.37,8.8072272]
[1772599867828,3.00102741,85.399,85.35,208.67764037]
[1772599868063,4.82477569,85.408,85.35,214.75918257]
[1772599868064,3.00102741,85.389,85.35,214.75918257]
[1772599868944,3.00102741,85.389,85.35,203.04275168]
[1772599869328,3.00102741,85.389,85.351,11.71632435]
[1772599870039,3.00102741,85.389,85.35,203.04275168]
[1772599871534,3.00102741,85.389,85.352,3.17233851]
[1772599874655,3.00102741,85.389,85.361,3.17233851]
[1772599875032,3.00102741,85.389,85.353,3.17233851]
[1772599875945,3.00102741,85.379,85.35,203.04275168]
[1772599876157,3.00102741,85.379,85.34,5.63488869]
[1772599876348,3.00102741,85.379,85.341,3.17233851]
[1772599878055,3.00102741,85.379,85.341,11.71756734]
[1772599878350,3.00102741,85.379,85.342,3.24300336]
[1772599880463,3.53480283,85.403,85.371,3.29014965]
[1772599880951,3.53480283,85.416,85.381,3.29014965]
[1772599881130,3.53480283,85.429,85.381,3.29014965]
[1772599881534,3.53480283,85.429,85.391,3.29014965]
[1772599884555,3.53480283,85.429,85.393,3.29014965]
[1772599884960,3.53480283,85.437,85.393,3.29014965]
[1772599885145,3.53480283,85.437,85.401,3.29014965]
[1772599887560,3.53480283,85.437,85.402,11.70932765]
[1772599887757,3.53480283,85.437,85.403,3.29014965]
[1772599889842,3.53480283,85.429,85.392,3.29014965]
[1772599891146,3.53480283,85.429,85.394,3.29014965]
[1772599891351,3.53480283,85.429,85.387,3.29014965]
[1772599891566,3.53480283,85.429,85.389,3.29014965]
[1772599893857,3.53480283,85.429,85.391,3.29014965]
[1772599896788,5.64429843,85.42,85.391,3.29014965]
[1772599897075,3.53480283,85.419,85.391,3.29014965]
[1772599897268,3.53480283,85.419,85.385,11.71158339]
[1772599897269,3.53480283,85.419,85.379,3.29014965]
[1772599897451,3.53480283,85.419,85.38,3.29014965]
[1772599897651,3.53480283,85.419,85.381,3.29014965]
[1772599899156,3.53480283,85.419,85.383,3.29014965]
[1772599899675,5.64429843,85.45,85.383,3.29014965]
[1772599899676,3.53480283,85.426,85.383,3.29014965]
[1772599900173,3.53480283,85.439,85.401,3.29014965]
[1772599901575,3.53480283,85.439,85.403,3.29014965]
[1772599902178,3.69383402,85.458,85.403,3.29014965]
[1772599902377,3.53480283,85.471,85.431,3.29014965]
[1772599903158,3.53480283,85.479,85.441,3.29014965]
[1772599903380,3.53480283,85.479,85.442,11.70384588]
[1772599903581,3.53480283,85.479,85.443,3.29014965]
[1772599904773,3.53480283,85.479,85.451,3.29014965]
[1772599906591,3.53480283,85.479,85.432,3.29014965]
[1772599906895,3.53480283,85.469,85.432,3.29014965]
[1772599907491,3.53480283,85.479,85.432,3.29014965]
[1772599907663,3.53480283,85.479,85.441,3.29014965]
[1772599909275,3.53480283,85.479,85.443,3.61249088]
[1772599911070,3.53480283,85.479,85.451,3.61249088]
[1772599911584,3.53480283,85.479,85.453,3.61249088]
[1772599913590,3.53480283,85.479,85.431,3.61249088]
[1772599913796,3.53480283,85.479,85.432,3.61249088]
[1772599914569,3.65663422,85.469,85.433,15.31756971]
[1772599914765,3.65663422,85.469,85.433,11.70507883]
[1772599914966,3.65663422,85.479,85.434,3.61249088]
[1772599915468,3.65663422,85.469,85.431,61.2]
[1772599915984,3.65663422,85.469,85.431,64.81249088]
[1772599916180,3.65663422,85.459,85.415,3.61249088]
[1772599916571,3.65663422,85.459,85.421,3.61249088]
[1772599918687,3.65663422,85.459,85.43,5.64429843]
[1772599918897,3.65663422,85.459,85.431,3.61249088]
[1772599919393,3.65663422,85.476,85.431,3.61249088]
[1772599919691,3.65663422,85.476,85.441,3.61249088]
[1772599920581,3.65663422,85.489,85.451,3.61249088]
[1772599920783,3.65663422,85.489,85.463,3.61249088]
[1772599923183,3.65663422,85.489,85.465,3.61249088]
[1772599923579,3.65663422,85.504,85.465,3.61249088]
[1772599925689,3.69383402,85.5,85.465,3.61249088]
[1772599925892,3.65663422,85.499,85.465,3.61249088]
[1772599926292,3.65663422,85.499,85.466,15.31305016]
[1772599926602,3.65663422,85.499,85.466,3.61249088]
[1772599926901,3.65663422,85.499,85.446,29.25794576]
[1772599926902,3.65663422,85.479,85.424,3.61249088]
[1772599927104,3.65663422,85.469,85.424,3.61249088]
[1772599927403,3.65663422,85.469,85.431,3.61249088]
[1772599928117,3.65663422,85.469,85.433,3.61249088]
[1772599928804,3.65663422,85.467,85.433,3.61249088]
[1772599930102,3.65663422,85.467,85.43,1.89304813]
[1772599930103,3.65663422,85.467,85.435,3.61249088]
[1772599930613,3.65663422,85.467,85.422,3.61249088]
[1772599930805,3.65663422,85.459,85.419,3.61249088]
[1772599931402,3.65663422,85.459,85.421,3.61249088]
[1772599932106,3.65663422,85.457,85.422,15.319077]
[1772599932282,3.65663422,85.457,85.423,3.61249088]
[1772599933913,3.65663422,85.439,85.407,3.61249088]
[1772599934301,3.65663422,85.439,85.411,3.61249088]
[1772599934810,3.65663422,85.437,85.411,3.61249088]
[1772599936701,3.65663422,85.435,85.404,3.61249088]
[1772599936903,3.65663422,85.435,85.397,15.32240838]
[1772599937106,3.65663422,85.429,85.397,15.32240838]
[1772599937418,3.65663422,85.429,85.398,3.61249088]
[1772599939225,3.8174764,85.427,85.398,3.61249088]
[1772599939389,3.8174764,85.427,85.391,3.53737368]
[1772599939591,3.8174764,85.419,85.386,15.52307146]
[1772599939800,3.8174764,85.419,85.387,3.81166205]
[1772599940701,3.8174764,85.419,85.388,3.81166205]
[1772599941218,3.8174764,85.419,85.389,11.71111033]
[1772599941416,3.8174764,85.419,85.39,3.81166205]
[1772599942318,3.71887192,85.417,85.39,3.81166205]
[1772599943815,3.71887192,85.417,85.384,3.81166205]
[1772599944320,3.71887192,85.409,85.384,3.81166205]
[1772599944516,3.71887192,85.409,85.353,61.2]
[1772599944517,3.71887192,85.409,85.378,11.71248618]
[1772599944818,3.71887192,85.389,85.354,3.81166205]
[1772599945517,3.71887192,85.379,85.354,3.81166205]
[1772599946821,3.71887192,85.379,85.356,3.81166205]
[1772599948122,3.71887192,85.378,85.356,3.81166205]
[1772599950108,3.71887192,85.378,85.357,15.52716282]
[1772599950429,3.71887192,85.379,85.351,3.81166205]
[1772599951109,3.71887192,85.378,85.351,3.81166205]
[1772599952714,3.71887192,85.376,85.351,3.81166205]
[1772599953816,3.71887192,85.376,85.352,3.81166205]
[1772599955831,15.43086707,85.383,85.352,3.81166205]
[1772599956027,5.64950947,85.38,85.352,3.81166205]
[1772599956233,3.71887192,85.379,85.352,3.81166205]
[1772599956430,3.71887192,85.377,85.352,3.81166205]
[1772599957435,3.71887192,85.376,85.351,3.81166205]
[1772599957615,3.71887192,85.387,85.351,3.81166205]
[1772599957815,3.71887192,85.379,85.351,3.81166205]
[1772599958925,3.71887192,85.379,85.352,3.81166205]
[1772599959321,3.71887192,85.378,85.352,3.81166205]
[1772599961438,3.71887192,85.378,85.353,15.52771186]
[1772599961622,3.71887192,85.378,85.354,3.81166205]
[1772599961821,3.71887192,85.409,85.354,3.81166205]
[1772599962131,3.71887192,85.399,85.361,3.81166205]
[1772599963460,3.71887192,85.389,85.361,3.81166205]
[1772599963743,3.71887192,85.379,85.354,15.52749043]
[1772599963940,3.71887192,85.379,85.355,3.81166205]
[1772599965120,5.64950947,85.39,85.355,3.81166205]
[1772599965121,3.71887192,85.389,85.355,3.81166205]
[1772599965522,3.71887192,85.395,85.357,3.81166205]
[1772599966139,5.64950947,85.39,85.357,3.81166205]
[1772599966330,3.71887192,85.389,85.357,3.81166205]
[1772599969137,3.80168412,85.379,85.358,11.71536352]
[1772599969339,3.80168412,85.379,85.358,15.32053357]
[1772599969544,3.80168412,85.369,85.351,61.2]
[1772599969841,3.80168412,85.369,85.35,0.2]
[1772599970642,3.80168412,85.369,85.351,11.71632435]
[1772599970828,3.80168412,85.379,85.352,3.60517005]
[1772599971343,3.80168412,85.379,85.353,11.71604981]
[1772599972123,3.80168412,85.379,85.352,3.60517005]
[1772599972322,3.80168412,85.377,85.352,3.60517005]
[1772599975038,3.80168412,85.377,85.352,15.32127778]
[1772599975554,3.80168412,85.377,85.353,3.60517005]
[1772599976251,3.80168412,85.384,85.353,3.60517005]
[1772599977041,3.80168412,85.393,85.353,3.60517005]
[1772599977349,3.80168412,85.393,85.355,3.60517005]
[1772599977550,11.7105556,85.394,85.355,3.60517005]
[1772599977551,3.80168412,85.389,85.355,3.60517005]
[1772599980054,3.80168412,85.389,85.357,3.60517005]
[1772599981744,3.80168412,85.402,85.36,1.89795568]
[1772599981949,3.80168412,85.417,85.371,3.60517005]
[1772599982269,3.80168412,85.417,85.373,3.60517005]
[1772599982461,3.80168412,85.409,85.373,3.60517005]
[1772599984645,3.80168412,85.409,85.375,3.60517005]
[1772599987144,3.80168412,85.409,85.377,3.60517005]
[1772599988660,3.80168412,85.412,85.379,3.60517005]
[1772599989842,3.80168412,85.412,85.381,3.60517005]
[1772599991473,3.80168412,85.419,85.381,3.60517005]
[1772599991846,3.80168412,85.419,85.383,3.60517005]
[1772599993472,3.80168412,85.409,85.383,3.60517005]
[1772599994050,3.80168412,85.399,85.375,11.71301662]
[1772599994364,3.80168412,85.399,85.376,3.60517005]
[1772599995575,3.80168412,85.409,85.376,3.60517005]
[1772599995770,5.6996398,85.42,85.381,3.60517005]
[1772599996272,1.89795568,85.43,85.391,3.60517005]
[1772599998373,15.36124949,85.429,85.393,3.87485273]
[1772599998751,52.7,85.44,85.401,3.87485273]
[1772600000967,54.59795568,85.44,85.403,3.75586923]
[1772600001165,58.34645388,85.44,85.403,3.75586923]
[1772600001372,3.7484982,85.439,85.403,3.75586923]
[1772600001573,3.7484982,85.438,85.403,3.75586923]
[1772600003193,3.7484982,85.438,85.405,3.75586923]
[1772600006178,3.7484982,85.436,85.407,3.75586923]
[1772600006650,3.7484982,85.429,85.406,11.70877924]
[1772600007452,3.7484982,85.429,85.407,3.75586923]
[1772600007657,3.7484982,85.439,85.407,3.75586923]
[1772600008073,3.7484982,85.439,85.409,3.75586923]
[1772600008480,3.7484982,85.449,85.411,3.75586923]
[1772600008785,1.89529125,85.47,85.411,3.75586923]
[1772600008786,3.7484982,85.454,85.411,3.75586923]
[1772600008988,3.7484982,85.449,85.411,3.75586923]
[1772600009872,3.7484982,85.449,85.413,3.75586923]
[1772600010664,1.89529125,85.45,85.413,3.75586923]
[1772600010665,3.7484982,85.447,85.413,3.75586923]
[1772600012565,3.7484982,85.447,85.414,11.70768258]
[1772600012770,3.7484982,85.447,85.415,3.75586923]
[1772600014882,3.7484982,85.447,85.417,3.75586923]
[1772600016180,3.7484982,85.466,85.421,3.75586923]
[1772600016376,3.7484982,85.466,85.431,3.75586923]
[1772600017080,3.7484982,85.466,85.433,3.75586923]
[1772600019285,3.7484982,85.466,85.435,3.75586923]
[1772600019786,3.7484982,85.473,85.435,3.75586923]
[1772600020784,3.7484982,85.473,85.441,3.75586923]
[1772600021681,3.7484982,85.473,85.442,40.96346058]
[1772600021880,3.7484982,85.487,85.443,3.75586923]
[1772600022088,3.7484982,85.487,85.451,3.75586923]
[1772600023085,15.44530632,85.494,85.451,3.75586923]
[1772600023288,3.7484982,85.494,85.451,3.75586923]
[1772600023694,3.7484982,85.499,85.463,3.75586923]
[1772600025193,3.7484982,85.497,85.463,3.75586923]
[1772600025992,3.7484982,85.497,85.465,3.75586923]
[1772600026299,3.7484982,85.489,85.465,3.75586923]
[1772600027587,3.7484982,85.489,85.467,3.75586923]
[1772600028271,3.7484982,85.489,85.458,11.70158161]
[1772600028475,3.7484982,85.489,85.459,3.77385477]
[1772600031096,3.75976714,85.488,85.461,3.77385477]
[1772600034200,3.75976714,85.488,85.463,3.77385477]
[1772600035711,3.75976714,85.486,85.463,3.77385477]
[1772600039394,3.75976714,85.484,85.463,3.77385477]
[1772600040585,3.75976714,85.484,85.465,3.77385477]
[1772600040790,3.75976714,85.489,85.465,3.77385477]
[1772600041583,3.75976714,85.512,85.465,3.77385477]
[1772600041788,11.69371813,85.516,85.465,3.77385477]
[1772600041789,3.75976714,85.509,85.465,3.77385477]
[1772600041989,3.75976714,85.515,85.481,3.77385477]
[1772600042396,3.75976714,85.523,85.481,3.77385477]
[1772600042711,3.75976714,85.523,85.483,3.77385477]
[1772600043089,3.75976714,85.521,85.483,3.77385477]
[1772600043490,3.75976714,85.519,85.483,3.77385477]
[1772600044911,3.75976714,85.519,85.485,3.77385477]
[1772600045404,1.99529125,85.53,85.491,3.77385477]
[1772600045405,3.75976714,85.529,85.491,3.77385477]
[1772600045812,3.75976714,85.528,85.491,3.77385477]
[1772600046008,3.75976714,85.528,85.485,3.77385477]
[1772600046212,1.89529125,85.52,85.485,3.77385477]
[1772600046712,3.75976714,85.521,85.485,3.77385477]
[1772600046913,3.75976714,85.529,85.491,3.77385477]
[1772600047113,3.75976714,85.529,85.493,3.77385477]
[1772600049014,3.75976714,85.529,85.503,3.77385477]
[1772600049607,0.1,85.53,85.503,3.77385477]
[1772600049823,3.80424102,85.538,85.511,3.77385477]
[1772600050000,11.68878826,85.553,85.512,3.77385477]
[1772600050195,1.89529125,85.55,85.512,3.77385477]
[1772600050401,3.75976714,85.549,85.512,3.77385477]
[1772600051519,3.75976714,85.549,85.514,3.77385477]
[1772600052313,3.75976714,85.556,85.521,3.77385477]